bitfinex/quotes_SOLUSD_20260304
["timestamp","ask_amount","ask_price","bid_price","bid_amount"]
[1772595665365,5.56745967,85.87,85.842,4.35803235]
[1772595666342,4.33341275,85.869,85.841,11.6494449]
[1772595666548,5.58562505,85.87,85.831,4.35803235]
[1772595666765,5.58562505,85.89,85.851,4.35803235]
[1772595666975,9.9190378,85.89,85.851,4.35803235]
[1772595667263,11.64252782,85.892,85.861,4.35803235]
[1772595667470,4.14444188,85.889,85.861,4.35803235]
[1772595667656,4.14444188,85.889,85.85,5.58562505]
[1772595667851,4.14444188,85.889,85.843,4.18667023]
[1772595667852,4.14444188,85.869,85.83,5.58562505]
[1772595668059,4.14444188,85.869,85.83,9.77229528]
[1772595668369,4.14444188,85.869,85.831,4.18667023]
[1772595669654,4.14444188,85.867,85.831,11.65080215]
[1772595670164,4.14444188,85.867,85.831,15.83747238]
[1772595670858,4.14444188,85.865,85.831,15.83747238]
[1772595671353,4.14444188,85.859,85.826,11.65144729]
[1772595671950,11.64605315,85.866,85.831,4.18667023]
[1772595672156,9.73006693,85.88,85.841,4.18667023]
[1772595672362,11.6445748,85.877,85.841,4.18667023]
[1772595672568,4.14444188,85.876,85.841,4.18667023]
[1772595673066,4.14444188,85.874,85.842,11.64930919]
[1772595673368,4.14444188,85.874,85.836,11.65004901]
[1772595673869,4.14444188,85.874,85.837,4.18667023]
[1772595674253,4.14444188,85.874,85.84,5.58562505]
[1772595674455,4.14444188,85.874,85.841,4.18667023]
[1772595675076,4.14444188,85.892,85.851,4.18667023]
[1772595675255,4.14444188,85.89,85.851,4.18667023]
[1772595675574,4.14444188,85.889,85.851,4.18667023]
[1772595676178,4.14444188,85.889,85.843,4.18667023]
[1772595677265,4.14444188,85.887,85.845,4.18667023]
[1772595677761,4.14444188,85.887,85.85,5.58562505]
[1772595677973,4.14444188,85.887,85.851,4.18667023]
[1772595679759,11.64334117,85.886,85.851,15.83470038]
[1772595679960,4.3322677,85.885,85.851,15.83470038]
[1772595680162,4.3322677,85.879,85.842,4.20203444]
[1772595680676,4.3322677,85.869,85.835,11.65014575]
[1772595680851,4.3322677,85.869,85.83,5.58562505]
[1772595681052,5.58562505,85.86,85.825,4.20203444]
[1772595681360,4.3322677,85.859,85.811,4.20203444]
[1772595681976,4.3322677,85.857,85.82,9.78765949]
[1772595682169,4.3322677,85.849,85.812,11.65338181]
[1772595682670,4.3322677,85.849,85.813,4.20203444]
[1772595682880,4.3322677,85.839,85.804,4.20203444]
[1772595683078,4.3322677,85.829,85.795,4.20203444]
[1772595683371,4.3322677,85.819,85.78,9.88765949]
[1772595683572,4.3322677,85.819,85.781,11.65759317]
[1772595683772,3.69383402,85.846,85.8,9.78765949]
[1772595683773,11.65096006,85.83,85.8,9.78765949]
[1772595683979,11.65096006,85.83,85.801,4.20203444]
[1772595684359,4.3322677,85.835,85.801,4.20203444]
[1772595684554,11.65039494,85.834,85.801,4.20203444]
[1772595684956,7.32487061,85.833,85.801,4.20203444]
[1772595685172,11.65039494,85.834,85.801,4.20203444]
[1772595685361,7.32658661,85.833,85.801,4.20203444]
[1772595685563,7.32658661,85.832,85.801,4.20203444]
[1772595685883,11.65039494,85.834,85.801,4.20203444]
[1772595686058,11.65066641,85.832,85.802,15.85677442]
[1772595686383,11.65039494,85.834,85.803,4.20203444]
[1772595686580,11.65039494,85.834,85.8,5.58562505]
[1772595686581,4.3322677,85.832,85.8,5.58562505]
[1772595686762,4.3322677,85.829,85.794,15.85778517]
[1772595687079,4.3322677,85.827,85.794,15.85778517]
[1772595687260,4.3322677,85.825,85.794,4.20203444]
[1772595687468,4.3322677,85.819,85.785,11.6570496]
[1772595687769,4.3322677,85.819,85.786,4.20203444]
[1772595687966,4.3322677,85.819,85.79,5.58562505]
[1772595688165,4.3322677,85.829,85.793,4.20203444]
[1772595688375,4.3322677,85.819,85.784,4.20203444]
[1772595688592,4.3322677,85.809,85.78,0.1]
[1772595688797,9.91789275,85.79,85.77,0.1]
[1772595688960,9.91789275,85.8,85.77,4.30203444]
[1772595689281,4.3322677,85.798,85.77,0.1]
[1772595689657,4.3322677,85.796,85.77,0.1]
[1772595690392,11.65569089,85.795,85.77,0.1]
[1772595690679,4.3322677,85.794,85.77,0.1]
[1772595691058,4.3322677,85.789,85.77,0.1]
[1772595691258,5.58562505,85.78,85.77,0.1]
[1772595691482,4.3322677,85.781,85.77,0.1]
[1772595692357,21.57562182,85.78,85.77,0.1]
[1772595692556,4.3322677,85.779,85.77,0.1]
[1772595692962,4.3322677,85.779,85.75,0.1]
[1772595693879,4.3322677,85.779,85.743,1.01816933]
[1772595693880,4.3322677,85.759,85.743,1.01816933]
[1772595694071,4.3322677,85.759,85.725,11.665144]
[1772595694673,4.3322677,85.757,85.725,11.665144]
[1772595695069,11.65871567,85.773,85.741,4.20203444]
[1772595695378,4.3322677,85.776,85.741,4.20203444]
[1772595695582,11.65795714,85.779,85.751,4.20203444]
[1772595695784,4.3322677,85.786,85.751,4.20203444]
[1772595695785,11.65725381,85.784,85.751,4.20203444]
[1772595696185,4.3322677,85.779,85.741,4.20203444]
[1772595696565,4.3322677,85.747,85.72,0.1]
[1772595697996,29.15150049,85.759,85.72,0.1]
[1772595697997,4.3322677,85.769,85.731,4.20203444]
[1772595698788,4.3322677,85.767,85.731,4.20203444]
[1772595698973,4.3322677,85.767,85.733,4.20203444]
[1772595699568,4.3322677,85.759,85.73,5.58562505]
[1772595700279,4.3322677,85.759,85.724,4.20203444]
[1772595701079,4.3322677,85.757,85.724,4.20203444]
[1772595701686,4.3322677,85.739,85.72,0.1]
[1772595701886,4.3322677,85.739,85.7,5.58562505]
[1772595701887,4.3322677,85.729,85.7,5.58562505]
[1772595702071,4.3322677,85.729,85.691,4.20203444]
[1772595702273,4.3322677,85.739,85.701,4.20203444]
[1772595702472,45.14478663,85.758,85.721,4.20203444]
[1772595702690,4.3322677,85.757,85.721,4.20203444]
[1772595703474,11.66099165,85.756,85.723,4.20203444]
[1772595703880,11.66099165,85.756,85.722,11.66561676]
[1772595703881,4.3322677,85.757,85.73,5.58562505]
[1772595704088,3.69383402,85.776,85.722,11.66561676]
[1772595704089,15.99045472,85.777,85.741,4.20203444]
[1772595704394,4.3322677,85.769,85.741,4.20203444]
[1772595705282,4.3322677,85.769,85.731,4.20203444]
[1772595705477,4.3322677,85.759,85.731,4.20203444]
[1772595705688,4.3322677,85.759,85.733,4.20203444]
[1772595705896,15.99162783,85.768,85.733,4.20203444]
[1772595706596,4.3322677,85.759,85.723,4.20203444]
[1772595707395,15.99071064,85.775,85.742,11.66289566]
[1772595707600,5.58562505,85.77,85.743,4.20203444]
[1772595707980,4.3322677,85.769,85.737,11.66353064]
[1772595708180,4.3322677,85.769,85.74,5.58562505]
[1772595708588,4.3322677,85.769,85.693,46.67777109]
[1772595708589,4.29424044,85.749,85.703,4.1840023]
[1772595708895,5.58562505,85.75,85.721,4.1840023]
[1772595709482,5.58562505,85.77,85.731,4.1840023]
[1772595709683,11.65949607,85.767,85.731,4.1840023]
[1772595711190,15.95373651,85.767,85.731,4.1840023]
[1772595711399,4.29424044,85.766,85.731,4.1840023]
[1772595712487,5.58562505,85.77,85.733,4.1840023]
[1772595712803,4.29424044,85.789,85.751,4.1840023]
[1772595713112,5.58562505,85.8,85.761,4.1840023]
[1772595713411,11.65221335,85.821,85.791,4.1840023]
[1772595713903,11.65221335,85.821,85.8,5.58562505]
[1772595714079,11.65221335,85.821,85.791,4.1840023]
[1772595714281,11.65221335,85.821,85.79,5.58562505]
[1772595714282,4.29424044,85.82,85.79,5.58562505]
[1772595714697,4.29424044,85.818,85.78,5.58562505]
[1772595714906,4.29424044,85.809,85.78,9.76962735]
[1772595715485,4.29424044,85.809,85.77,9.76962735]
[1772595715690,5.58562505,85.8,85.771,11.65895232]
[1772595715883,4.29424044,85.799,85.77,4.1840023]
[1772595716089,4.29424044,85.799,85.761,15.84431409]
[1772595716299,5.58562505,85.8,85.771,4.1840023]
[1772595716605,3.29424044,85.799,85.762,4.1840023]
[1772595717028,5.58562505,85.79,85.762,4.1840023]
[1772595717303,5.58562505,85.79,85.752,4.1840023]
[1772595717502,5.58562505,85.79,85.76,5.58562505]
[1772595718085,40.79349167,85.798,85.761,4.1840023]
[1772595718490,40.79349167,85.798,85.751,40.81585054]
[1772595718491,11.65454455,85.804,85.781,4.1840023]
[1772595718888,21.5336011,85.81,85.781,4.1840023]
[1772595719090,4.29424044,85.809,85.781,4.1840023]
[1772595719489,11.65308291,85.815,85.783,4.1840023]
[1772595720102,15.94732335,85.815,85.783,4.1840023]
[1772595720307,4.29424044,85.809,85.773,4.1840023]
[1772595720692,4.29424044,85.809,85.78,5.58562505]
[1772595720891,15.9480506,85.809,85.782,11.65745727]
[1772595721092,15.9480506,85.809,85.782,15.84145957]
[1772595722105,4.29424044,85.808,85.771,4.1840023]
[1772595722319,11.65381016,85.809,85.771,4.1840023]
[1772595722537,11.65381016,85.809,85.781,4.1840023]
[1772595723105,11.65381016,85.809,85.767,29.14871773]
[1772595723106,4.29424044,85.808,85.772,11.65881639]
[1772595723300,4.29424044,85.799,85.76,5.58562505]
[1772595723501,4.29424044,85.789,85.76,5.58562505]
[1772595724024,5.58562505,85.8,85.77,5.58562505]
[1772595724311,4.29424044,85.803,85.771,4.1840023]
[1772595724913,4.29424044,85.815,85.781,4.1840023]
[1772595725409,11.65311021,85.814,85.783,4.1840023]
[1772595726111,11.65161666,85.825,85.801,4.1840023]
[1772595726302,11.65161666,85.825,85.782,40.80110045]
[1772595726303,11.48699534,85.824,85.791,4.1840023]
[1772595726629,7.1927549,85.823,85.791,4.1840023]
[1772595726794,4.29424044,85.819,85.783,4.1840023]
[1772595726990,4.29424044,85.817,85.79,5.59213314]
[1772595727196,4.29424044,85.809,85.772,4.1840023]
[1772595727413,11.65419667,85.806,85.772,4.1840023]
[1772595727613,11.65358401,85.811,85.79,9.77613544]
[1772595727817,4.29424044,85.829,85.8,5.59213314]
[1772595728021,4.29424044,85.827,85.791,4.1840023]
[1772595728200,4.29424044,85.819,85.791,4.1840023]
[1772595728398,11.49170736,85.818,85.791,4.1840023]
[1772595728595,4.29424044,85.818,85.791,4.1840023]
[1772595728802,4.29424044,85.829,85.791,4.1840023]
[1772595729020,4.29424044,85.827,85.791,4.1840023]
[1772595729221,4.29424044,85.825,85.791,4.1840023]
[1772595729403,4.29424044,85.819,85.783,4.1840023]
[1772595730109,4.29424044,85.817,85.783,4.1840023]
[1772595730311,4.29424044,85.815,85.783,4.1840023]
[1772595730507,4.29424044,85.813,85.783,4.1840023]
[1772595730712,4.29424044,85.809,85.783,4.1840023]
[1772595731011,11.49005879,85.808,85.783,4.1840023]
[1772595731218,7.19581835,85.807,85.783,4.1840023]
[1772595731617,11.65419667,85.806,85.783,4.1840023]
[1772595731824,7.19581835,85.805,85.783,4.1840023]
[1772595732222,11.49005879,85.805,85.773,4.1840023]
[1772595732407,4.29424044,85.803,85.773,4.1840023]
[1772595732598,5.59213314,85.8,85.764,4.1840023]
[1772595732805,4.29424044,85.798,85.764,4.1840023]
[1772595733121,11.49005879,85.797,85.765,11.65976797]
[1772595733424,40.78968836,85.806,85.76,5.59213314]
[1772595733425,4.29424044,85.789,85.76,5.59213314]
[1772595733602,11.65677783,85.787,85.757,4.1840023]
[1772595733797,11.65677783,85.787,85.76,5.59213314]
[1772595734001,4.29424044,85.786,85.76,5.59213314]
[1772595735924,104.87479519,85.817,85.746,4.1840023]
[1772595735925,4.29424044,85.779,85.746,4.1840023]
[1772595736102,4.29424044,85.779,85.747,11.66221558]
[1772595736303,4.29424044,85.779,85.747,15.84621788]
[1772595736519,4.29424044,85.779,85.748,4.1840023]
[1772595737722,4.29424044,85.777,85.741,4.1840023]
[1772595737914,4.29424044,85.777,85.742,4.1840023]
[1772595739340,4.32988916,85.759,85.726,4.38883296]
[1772595739510,11.65800088,85.778,85.726,4.38883296]
[1772595739511,4.32988916,85.757,85.726,4.38883296]
[1772595739907,11.66112763,85.755,85.726,4.38883296]
[1772595740241,4.29685882,85.749,85.71,5.59213314]
[1772595740408,4.29685882,85.747,85.711,4.13005413]
[1772595740614,40.8139467,85.755,85.711,4.13005413]
[1772595740615,4.29685882,85.739,85.711,4.13005413]
[1772595740815,4.29685882,85.739,85.701,4.13005413]
[1772595741016,4.29685882,85.739,85.702,4.13005413]
[1772595741608,5.59213314,85.74,85.711,4.13005413]
[1772595741835,4.29685882,85.769,85.723,4.13005413]
[1772595742127,5.59213314,85.76,85.731,4.13005413]
[1772595742342,4.29685882,85.759,85.722,4.13005413]
[1772595742646,4.29685882,85.749,85.722,4.13005413]
[1772595742936,5.59213314,85.74,85.714,4.13005413]
[1772595743136,4.29685882,85.739,85.714,4.13005413]
[1772595743305,4.29685882,85.749,85.72,4.13005413]
[1772595743734,4.29685882,85.757,85.721,4.13005413]
[1772595743927,5.59213314,85.75,85.722,4.13005413]
[1772595744338,5.59213314,85.75,85.723,4.13005413]
[1772595744529,4.29685882,85.749,85.711,4.13005413]
[1772595745318,4.29685882,85.749,85.712,4.13005413]
[1772595746039,15.9589384,85.748,85.714,4.13005413]
[1772595746235,102.5,85.779,85.721,4.13005413]
[1772595746236,11.66126361,85.754,85.721,4.13005413]
[1772595746535,7.22168927,85.753,85.721,4.13005413]
[1772595746736,17.25131433,85.77,85.731,4.13005413]
[1772595746933,11.65848065,85.775,85.741,4.13005413]
[1772595747131,7.22296448,85.774,85.741,4.13005413]
[1772595747315,9.88899196,85.77,85.741,4.13005413]
[1772595747514,7.22296448,85.769,85.741,4.13005413]
[1772595748017,7.22296448,85.769,85.742,11.66289566]
[1772595748232,11.65850459,85.775,85.743,4.13005413]
[1772595748936,7.22939252,85.774,85.743,4.13005413]
[1772595749235,7.22939252,85.773,85.743,4.13005413]
[1772595749430,7.22939252,85.773,85.742,11.66289566]
[1772595749431,4.29685882,85.769,85.734,4.13005413]
[1772595750643,69.86657284,85.878,85.703,29.85]
[1772595750644,5.59213314,85.78,85.741,4.13005413]
[1772595750942,11.65770944,85.781,85.751,4.13005413]
[1772595751744,4.29685882,85.779,85.741,4.13005413]
[1772595753547,5.59213314,85.77,85.733,4.13005413]
[1772595753854,4.29685882,85.759,85.727,4.13005413]
[1772595754825,4.29685882,85.749,85.718,4.13005413]
[1772595755422,4.29685882,85.758,85.72,5.59213314]
[1772595755630,15.95771449,85.757,85.723,4.13005413]
[1772595756145,4.29685882,85.749,85.711,4.13005413]
[1772595757219,4.29685882,85.739,85.711,4.13005413]
[1772595757441,4.29685882,85.732,85.705,4.13005413]
[1772595757742,4.29685882,85.732,85.704,11.66806683]
[1772595757743,11.6613285,85.754,85.721,4.13005413]
[1772595758123,4.29685882,85.758,85.721,4.13005413]
[1772595758318,18.88498416,85.757,85.721,4.13005413]
[1772595758525,4.29685882,85.749,85.721,4.13005413]
[1772595760419,4.29685882,85.758,85.723,4.13005413]
[1772595760721,4.29685882,85.756,85.723,4.13005413]
[1772595761128,4.29685882,85.749,85.714,4.13005413]
[1772595761330,4.29685882,85.747,85.714,4.13005413]
[1772595762350,4.29685882,85.744,85.714,4.13005413]
[1772595762846,4.29685882,85.744,85.715,15.79662357]
[1772595763241,4.29685882,85.744,85.715,11.66656944]
[1772595763437,29.14700043,85.773,85.721,4.13005413]
[1772595763646,5.59213314,85.76,85.731,4.13005413]
[1772595763943,5.59213314,85.78,85.741,4.13005413]
[1772595764132,4.29685882,85.778,85.741,4.13005413]
[1772595764326,5.59213314,85.77,85.741,4.13005413]
[1772595764526,5.59213314,85.77,85.73,21.38662923]
[1772595764527,4.29685882,85.768,85.73,21.38662923]
[1772595764743,4.29685882,85.768,85.731,4.13005413]
[1772595765126,4.29685882,85.749,85.714,4.13005413]
[1772595765522,5.59213314,85.76,85.721,4.13005413]
[1772595765735,4.29685882,85.759,85.731,4.13005413]
[1772595766526,11.66071969,85.758,85.731,4.13005413]
[1772595766737,11.66014552,85.763,85.732,4.13005413]
[1772595766950,5.59213314,85.77,85.741,4.13005413]
[1772595768052,4.17861675,85.769,85.731,11.66427481]
[1772595768356,4.17861675,85.767,85.732,4.08829629]
[1772595768560,4.17861675,85.765,85.732,4.08829629]
[1772595768852,23.03671683,85.764,85.734,4.08829629]
[1772595769151,15.83860681,85.764,85.734,4.08829629]
[1772595770156,7.1985375,85.763,85.736,4.08829629]
[1772595770356,11.65806874,85.778,85.741,4.08829629]
[1772595770536,11.38099277,85.777,85.741,4.08829629]
[1772595770734,11.38099277,85.776,85.741,4.08829629]
[1772595770930,7.20237602,85.775,85.741,4.08829629]
[1772595771138,4.17861675,85.775,85.741,4.08829629]
[1772595771450,7.2051717,85.774,85.741,4.08829629]
[1772595771636,4.17861675,85.769,85.731,4.08829629]
[1772595771840,4.17861675,85.767,85.731,4.08829629]
[1772595772148,11.65806874,85.778,85.701,28.49]
[1772595772149,11.65892708,85.772,85.741,4.08829629]
[1772595772351,5.59213314,85.77,85.741,4.08829629]
[1772595772561,11.65892708,85.772,85.741,4.08829629]
[1772595773546,4.17861675,85.771,85.741,4.08829629]
[1772595773754,4.17861675,85.769,85.733,4.08829629]
[1772595774067,4.17861675,85.759,85.73,1.88047135]
[1772595774353,4.17861675,85.757,85.728,4.08829629]
[1772595774552,7.21317602,85.756,85.728,4.08829629]
[1772595774755,4.17861675,85.757,85.73,1.88047135]
[1772595775256,4.17861675,85.757,85.71,1.88047135]
[1772595775257,4.17861675,85.755,85.677,4.08829629]
[1772595775433,1.88047135,85.7,85.681,4.08829629]
[1772595775638,10.87428507,85.754,85.681,4.08829629]
[1772595775841,1.88047135,85.73,85.691,4.08829629]
[1772595776348,1.88047135,85.72,85.691,4.08829629]
[1772595776657,93.29582668,85.749,85.68,1.98047135]
[1772595776658,11.66388643,85.735,85.701,4.08829629]
[1772595778263,11.66388643,85.735,85.711,4.08829629]
[1772595778633,4.13683058,85.748,85.711,4.08829629]
[1772595778634,29.15332216,85.754,85.711,4.08829629]
[1772595778947,5.60408453,85.75,85.719,4.08829629]
[1772595779656,40.8148986,85.753,85.71,4.08829629]
[1772595779657,5.60408453,85.74,85.71,4.08829629]
[1772595780247,11.66330374,85.739,85.71,4.08829629]
[1772595780441,4.13683058,85.749,85.711,4.08829629]
[1772595780642,11.66255809,85.745,85.712,4.08829629]
[1772595781658,4.17861675,85.739,85.7,5.60408453]
[1772595781954,4.17861675,85.729,85.69,5.60408453]
[1772595782346,11.66480029,85.728,85.69,5.60408453]
[1772595783053,11.66480029,85.728,85.7,5.60408453]
[1772595783260,4.17861675,85.745,85.71,5.60408453]
[1772595783459,11.6613996,85.753,85.72,5.60408453]
[1772595783642,11.6613996,85.753,85.731,4.08829629]
[1772595783956,11.65922419,85.769,85.741,4.08829629]
[1772595784453,5.60408453,85.76,85.73,9.69238082]
[1772595784762,9.78270128,85.76,85.73,4.08829629]
[1772595784960,4.17861675,85.759,85.73,4.08829629]
[1772595785747,5.60408453,85.76,85.73,5.60408453]
[1772595785952,5.60408453,85.76,85.731,4.08829629]
[1772595786856,11.66058372,85.759,85.731,4.08829629]
[1772595787357,5.60408453,85.75,85.721,4.08829629]
[1772595787561,4.17861675,85.749,85.71,5.60408453]
[1772595787767,4.17861675,85.719,85.655,10.18240553]
[1772595788071,4.17861675,85.679,85.64,0.1]
[1772595788258,4.17861675,85.669,85.64,0.1]
[1772595788459,5.61105922,85.66,85.64,0.1]
[1772595789066,4.17861675,85.667,85.64,0.1]
[1772595789448,9.78967597,85.66,85.64,0.1]
[1772595791451,11.67419652,85.659,85.64,0.1]
[1772595791853,5.61105922,85.67,85.641,4.08829629]
[1772595792055,4.17861675,85.678,85.641,4.08829629]
[1772595792760,4.17861675,85.669,85.64,0.1]
[1772595792961,4.17861675,85.649,85.598,4.08829629]
[1772595793164,5.61105922,85.62,85.595,6.08469708]
[1772595793366,285.9510883,85.679,85.601,4.08829629]
[1772595793367,4.17861675,85.643,85.601,4.08829629]
[1772595793565,5.61105922,85.64,85.611,4.08829629]
[1772595794260,4.17861675,85.619,85.581,4.08829629]
[1772595794473,4.17861675,85.619,85.59,5.61105922]
[1772595795378,58.37330989,85.656,85.573,40.9007514]
[1772595795379,4.17861675,85.66,85.611,4.08829629]
[1772595795683,4.17861675,85.658,85.612,11.68060552]
[1772595795859,11.67419652,85.659,85.612,11.68060552]
[1772595795860,4.17861675,85.649,85.612,11.68060552]
[1772595796059,4.17861675,85.649,85.61,9.69935551]
[1772595796667,4.17861675,85.639,85.601,11.68205061]
[1772595796873,4.17861675,85.639,85.61,5.61105922]
[1772595797054,40.85968782,85.659,85.567,46.7469922]
[1772595797055,4.17861675,85.649,85.62,5.61105922]
[1772595797261,5.61105922,85.64,85.61,5.61105922]
[1772595797462,11.67692289,85.639,85.604,11.68164136]
[1772595797681,11.67692289,85.639,85.61,5.61105922]
[1772595797878,11.67692289,85.639,85.604,15.76993765]
[1772595798277,5.61105922,85.63,85.6,5.61105922]
[1772595798677,4.44078145,85.629,85.595,4.13757045]
[1772595798875,4.44078145,85.629,85.6,5.61105922]
[1772595799373,5.61105922,85.62,85.59,5.61105922]
[1772595799598,16.12043199,85.619,85.59,5.61105922]
[1772595799888,4.46117034,85.618,85.573,11.68592897]
[1772595800182,4.46117034,85.609,85.58,5.61105922]
[1772595800485,11.67891798,85.625,85.591,4.3840643]
[1772595800791,5.61105922,85.63,85.601,4.3840643]
[1772595801083,46.67752693,85.695,85.611,4.3840643]
[1772595801084,4.46117034,85.647,85.611,4.3840643]
[1772595801276,4.46117034,85.655,85.62,5.61105922]
[1772595801471,4.46117034,85.629,85.576,3.69383402]
[1772595801667,5.61105922,85.65,85.573,3.69383402]
[1772595801668,4.46117034,85.599,85.573,11.68592897]
[1772595801875,10.07222956,85.61,85.574,4.3840643]
[1772595802785,11.68101484,85.609,85.574,4.3840643]
[1772595802962,4.46117034,85.608,85.574,4.3840643]
[1772595803670,4.46117034,85.599,85.572,1.01817057]
[1772595804068,5.61105922,85.59,85.572,1.01817057]
[1772595804687,4.46117034,85.599,85.572,1.01817057]
[1772595805382,5.61105922,85.59,85.572,1.01817057]
[1772595805891,4.46117034,85.599,85.572,12.70413626]
[1772595806065,16.14368628,85.598,85.572,1.01817057]
[1772595807104,4.46117034,85.569,85.531,4.3840643]
[1772595807283,5.61105922,85.56,85.531,4.3840643]
[1772595807581,4.46117034,85.569,85.531,4.3840643]
[1772595807785,4.46117034,85.567,85.531,4.3840643]
[1772595807981,5.61105922,85.56,85.531,4.3840643]
[1772595808580,4.46117034,85.559,85.521,4.3840643]
[1772595808884,4.46117034,85.559,85.522,4.3840643]
[1772595809071,5.61105922,85.56,85.522,4.3840643]
[1772595809267,4.46117034,85.613,85.551,4.3840643]
[1772595809468,4.46117034,85.579,85.55,5.61105922]
[1772595809664,4.46117034,85.579,85.54,5.61105922]
[1772595809880,4.46117034,85.577,85.541,16.07436485]
[1772595810079,5.61105922,85.59,85.56,9.99512352]
[1772595810688,5.61105922,85.59,85.56,4.3840643]
[1772595810867,4.46117034,85.589,85.55,5.61105922]
[1772595811190,5.61105922,85.6,85.561,4.3840643]
[1772595811598,4.46117034,85.61,85.57,5.61105922]
[1772595811599,10.07222956,85.61,85.57,5.61105922]
[1772595811892,5.61105922,85.65,85.526,4.3840643]
[1772595811893,4.46117034,85.579,85.526,4.3840643]
[1772595812101,5.61105922,85.56,85.531,4.3840643]
[1772595812397,5.61105922,85.58,85.541,4.3840643]
[1772595812573,4.46117034,85.579,85.541,4.3840643]
[1772595813798,4.46117034,85.588,85.551,4.3840643]
[1772595814291,11.68438738,85.585,85.551,4.3840643]
[1772595815094,5.61105922,85.6,85.571,4.3840643]
[1772595815398,4.46117034,85.599,85.56,9.99512352]
[1772595815574,4.46117034,85.579,85.54,17.30147186]
[1772595815772,4.46117034,85.579,85.55,5.61105922]
[1772595815993,11.6852462,85.578,85.55,5.61105922]
[1772595816389,4.46117034,85.569,85.54,5.61105922]
[1772595816585,40.89836172,85.578,85.523,29.23157274]
[1772595816586,4.46117034,85.577,85.55,5.61105922]
[1772595816788,11.6852462,85.578,85.551,4.3840643]
[1772595817180,4.46117034,85.577,85.55,5.61105922]
[1772595817701,4.46117034,85.583,85.535,4.3840643]
[1772595817884,4.46117034,85.567,85.53,5.61105922]
[1772595818795,5.61105922,85.56,85.53,5.61105922]
[1772595818995,4.46117034,85.559,85.522,4.3840643]
[1772595819210,4.46117034,85.549,85.511,4.3840643]
[1772595819706,11.68661181,85.568,85.531,4.3840643]
[1772595819889,4.46117034,85.567,85.531,4.3840643]
[1772595820292,5.61105922,85.56,85.531,4.3840643]
[1772595820595,5.61105922,85.56,85.53,5.61105922]
[1772595820596,10.07222956,85.56,85.53,5.61105922]
[1772595820777,4.46117034,85.56,85.53,5.61105922]
[1772595821182,5.61105922,85.59,85.551,4.3840643]
[1772595821503,11.68435138,85.585,85.541,4.3840643]
[1772595821684,4.46117034,85.584,85.55,5.61105922]
[1772595821872,4.46117034,85.584,85.551,4.3840643]
[1772595822686,11.68456352,85.583,85.552,11.68879745]
[1772595822995,11.68456352,85.583,85.553,4.3840643]
[1772595823204,4.46117034,85.604,85.571,4.3840643]
[1772595824880,11.68101484,85.609,85.573,4.3840643]
[1772595825089,11.67992337,85.617,85.581,4.3840643]
[1772595825292,11.67992337,85.617,85.59,5.61105922]
[1772595826298,16.14109371,85.617,85.581,4.3840643]
[1772595826488,4.46117034,85.616,85.581,4.3840643]
[1772595826676,4.46117034,85.616,85.59,5.61105922]
[1772595827701,11.67924131,85.622,85.592,4.3840643]
[1772595828403,16.06865661,85.622,85.592,4.3840643]
[1772595828698,11.67703658,85.639,85.601,4.45675997]
[1772595828897,4.3894153,85.629,85.59,5.61105922]
[1772595829082,4.3894153,85.629,85.59,10.06781919]
[1772595829283,4.3894153,85.629,85.6,5.61105922]
[1772595829798,11.67842294,85.628,85.6,5.61105922]
[1772595829999,11.67842294,85.628,85.591,4.45675997]
[1772595830000,4.3894153,85.627,85.591,4.45675997]
[1772595830390,4.3894153,85.627,85.6,5.61105922]
[1772595831699,4.3894153,85.627,85.591,4.45675997]
[1772595832286,11.67869572,85.626,85.592,4.45675997]
[1772595832681,11.67869572,85.626,85.6,5.61105922]
[1772595832896,4.3894153,85.625,85.592,4.45675997]
[1772595833089,4.3894153,85.645,85.611,4.45675997]
[1772595833385,4.3894153,85.643,85.611,4.45675997]
[1772595833586,5.61105922,85.66,85.62,5.61105922]
[1772595833788,4.3894153,85.629,85.551,4.45675997]
[1772595833992,4.3894153,85.599,85.57,5.61105922]
[1772595834201,16.07186073,85.599,85.57,5.61105922]
[1772595834893,4.3894153,85.598,85.561,4.45675997]
[1772595835694,4.3894153,85.598,85.562,4.45675997]
[1772595836400,4.3894153,85.598,85.57,10.06781919]
[1772595836401,11.68265242,85.597,85.57,10.06781919]
[1772595836709,11.68265242,85.597,85.57,4.45675997]
[1772595836904,4.3894153,85.598,85.57,4.45675997]
[1772595837129,4.3894153,85.598,85.57,10.06781919]
[1772595837308,11.67978696,85.618,85.581,4.45675997]
[1772595837488,4.3894153,85.617,85.581,4.45675997]
[1772595838100,4.3894153,85.617,85.58,5.61105922]
[1772595838101,4.34552114,85.589,85.541,4.45675997]
[1772595838309,5.61105922,85.59,85.551,4.45675997]
[1772595838618,11.6837444,85.589,85.553,4.45675997]
[1772595839120,11.68308156,85.594,85.553,4.45675997]
[1772595839714,11.68231161,85.6,85.561,4.45675997]
[1772595840013,17.29337083,85.6,85.561,4.45675997]
[1772595840215,17.29337083,85.6,85.509,4.45675997]
[1772595840216,4.30206592,85.566,85.509,4.45675997]
[1772595840514,5.61105922,85.54,85.511,4.45675997]
[1772595840699,40.91222573,85.549,85.492,4.45675997]
[1772595840905,5.61105922,85.54,85.501,4.45675997]